fUST/lending_fUST_20250623
["ID","MTS","AMOUNT","RATE_DAILY","PERIOD"]
[367141515,1750668875204,-460.0,0.00022739,2]
[367141516,1750668875242,-1090.19,0.00022739,2]
[367141517,1750668875281,-652.16,0.00022739,2]
[367141518,1750668875317,-213.35040464,0.00022739,2]
[367141519,1750668875353,-475.03,0.00022739,2]
[367141520,1750668875389,-460.0,0.00022739,2]
[367141521,1750668875423,-215.83619628,0.00022739,2]
[367141522,1750668875456,-460.0,0.00022739,2]
[367141523,1750668875494,-460.0,0.00022739,2]
[367141524,1750668875680,-1219.76,0.00022739,2]
[367141525,1750668875714,-460.0,0.00022739,2]
[367141526,1750668875746,-461.91210482,0.00022739,2]
[367141527,1750668875778,-460.0,0.00022739,2]
[367141528,1750668875810,-460.0,0.00022739,2]
[367141529,1750668875847,-288.99757411,0.00022739,2]
[367141530,1750668875877,-460.0,0.00022739,2]
[367141531,1750668875908,-460.0,0.00022739,2]
[367141532,1750668875939,-1079.84,0.00022739,2]
[367141533,1750668875968,-460.0,0.00022739,2]
[367141534,1750668875999,-460.0,0.00022739,2]
[367141535,1750668876031,-460.0,0.00022739,2]
[367141536,1750668876061,-460.0,0.00022739,2]
[367141537,1750668876091,-460.0,0.00022739,2]
[367141538,1750668876121,-500.0,0.00022739,2]
[367141539,1750668876152,-475.18,0.00022739,2]
[367141540,1750668876182,-460.0,0.00022739,2]
[367141541,1750668876212,-1001.9,0.00022739,2]
[367141542,1750668876243,-460.0,0.00022739,2]
[367141543,1750668876273,-460.0,0.00022739,2]
[367141544,1750668876304,-838.24,0.00022739,2]
[367141545,1750668876335,-460.0,0.00022739,2]
[367141546,1750668876365,-460.0,0.00022739,2]
[367141547,1750668876397,-7926.46,0.00022739,2]
[367141548,1750668876429,-460.0,0.00022739,2]
[367141549,1750668876461,-617.18,0.00022739,2]
[367141550,1750668876492,-460.0,0.00022739,2]
[367141551,1750668876524,-1790.07,0.00022739,2]
[367141552,1750668876559,-460.0,0.00022739,2]
[367141553,1750668876594,-481.69382542,0.00022739,2]
[367141554,1750668876629,-500.0,0.00022739,2]
[367141555,1750668876662,-460.0,0.00022739,2]
[367141556,1750668876697,-845.01,0.00022739,2]
[367141557,1750668876736,-273.09607693,0.00022739,2]
[367141558,1750668876770,-502.73,0.00022739,2]
[367141559,1750668876802,-460.0,0.00022739,2]
[367141560,1750668876835,-500.0,0.00022739,2]
[367141561,1750668876873,-1133.22,0.00022739,2]
[367141562,1750668876907,-460.0,0.00022739,2]
[367141563,1750668876943,-500.2,0.00022739,2]
[367141564,1750668876978,-479.55,0.00022739,2]
[367141565,1750668877010,-460.0,0.00022739,2]
[367141566,1750668877044,-1811.04,0.00022739,2]
[367141567,1750668877076,-958.78,0.00022739,2]
[367141568,1750668877108,-460.0,0.00022739,2]
[367141569,1750668877140,-881.51,0.00022739,2]
[367141570,1750668877171,-460.0,0.00022739,2]
[367141571,1750668877202,-625.94,0.00022739,2]
[367141572,1750668877232,-1036.85,0.00022739,2]
[367141573,1750668877262,-460.0,0.00022739,2]
[367141574,1750668877293,-460.0,0.00022739,2]
[367141575,1750668877324,-855.07,0.00022739,2]
[367141576,1750668877355,-1527.02,0.00022739,2]
[367141577,1750668877387,-1371.96,0.00022739,2]
[367141578,1750668877419,-460.0,0.00022739,2]
[367141579,1750668877449,-460.0,0.00022739,2]
[367141580,1750668877481,-2239.41,0.00022739,2]
[367141581,1750668877513,-9200.65,0.00022739,2]
[367141582,1750668877544,-460.0,0.00022739,2]
[367141583,1750668877575,-460.0,0.00022739,2]
[367141584,1750668877608,-710.47,0.00022739,2]
[367141585,1750668877643,-6850.57,0.00022739,2]
[367141586,1750668877675,-550.58,0.00022739,2]
[367141587,1750668877707,-460.0,0.00022739,2]
[367141588,1750668877741,-460.0,0.00022739,2]
[367141589,1750668877773,-460.0,0.00022739,2]
[367141590,1750668877804,-348.76262423,0.00022739,2]
[367141591,1750668877835,-460.0,0.00022739,2]
[367141592,1750668877869,-1440.61,0.00022739,2]
[367141593,1750668877900,-1141.15,0.00022739,2]
[367141594,1750668877931,-1935.47,0.00022739,2]
[367141595,1750668877964,-460.0,0.00022739,2]
[367141596,1750668877996,-698.86,0.00022739,2]
[367141597,1750668878030,-477.01,0.00022739,2]
[367141598,1750668878061,-2095.51,0.00022739,2]
[367141599,1750668878094,-649.72,0.00022739,2]
[367141600,1750668878126,-460.0,0.00022739,2]
[367141601,1750668878157,-460.0,0.00022739,2]
[367141602,1750668878187,-396.94427314,0.00022739,2]
[367141603,1750668878218,-3216.99,0.00022739,2]
[367141604,1750668878249,-764.68,0.00022739,2]
[367141605,1750668878279,-460.0,0.00022739,2]
[367141606,1750668878315,-1044.6,0.00022739,2]
[367141607,1750668878353,-460.0,0.00022739,2]
[367141608,1750668878386,-460.0,0.00022739,2]
[367141609,1750668878418,-460.0,0.00022739,2]
[367141610,1750668878453,-460.0,0.00022739,2]
[367141611,1750668878488,-460.0,0.00022739,2]
[367141612,1750668878524,-477.82623901,0.00022739,2]
[367141613,1750668878559,-6704.7,0.00022739,2]
[367141614,1750668878593,-748.53,0.00022739,2]
[367141615,1750668878626,-460.0,0.00022739,2]
[367141616,1750668878660,-460.0,0.00022739,2]
[367141617,1750668878694,-1746.54,0.00022739,2]
[367141618,1750668878904,-837.85,0.00022739,2]
[367141619,1750668878939,-477.99,0.00022739,2]
[367141620,1750668878973,-828.69,0.00022739,2]
[367141621,1750668879004,-460.0,0.00022739,2]
[367141622,1750668879038,-460.0,0.00022739,2]
[367141623,1750668879070,-460.0,0.00022739,2]
[367141624,1750668879102,-602.47,0.00022739,2]
[367141625,1750668879133,-460.0,0.00022739,2]
[367141626,1750668879164,-460.0,0.00022739,2]
[367141627,1750668879195,-500.0,0.00022739,2]
[367141628,1750668879226,-460.0,0.00022739,2]
[367141629,1750668879256,-5266.75,0.00022739,2]
[367141630,1750668879287,-460.0,0.00022739,2]
[367141631,1750668879319,-460.0,0.00022739,2]
[367141632,1750668879350,-1600.69,0.00022739,2]
[367141633,1750668879381,-460.0,0.00022739,2]
[367141634,1750668879415,-460.0,0.00022739,2]
[367141635,1750668879448,-1892.11,0.00022739,2]
[367141636,1750668879480,-1319.73,0.00022739,2]
[367141637,1750668879511,-460.0,0.00022739,2]
[367141638,1750668879542,-460.0,0.00022739,2]
[367141639,1750668879576,-7120.27,0.00022739,2]
[367141640,1750668879609,-460.0,0.00022739,2]
[367141641,1750668879645,-460.0,0.00022739,2]
[367141642,1750668879679,-460.0,0.00022739,2]
[367141643,1750668879711,-460.0,0.00022739,2]
[367141644,1750668879745,-1897.26,0.00022739,2]
[367141645,1750668879778,-6904.54,0.00022739,2]
[367141646,1750668879809,-1282.26,0.00022739,2]
[367141647,1750668879841,-460.0,0.00022739,2]
[367141648,1750668879875,-475.37,0.00022739,2]
[367141649,1750668879908,-2314.79,0.00022739,2]
[367141650,1750668879941,-505.8,0.00022739,2]
[367141651,1750668879974,-460.0,0.00022739,2]
[367141652,1750668880007,-505.2,0.00022739,2]
[367141653,1750668880040,-460.0,0.00022739,2]
[367141654,1750668880072,-460.0,0.00022739,2]
[367141655,1750668880104,-460.0,0.00022739,2]
[367141656,1750668880136,-460.0,0.00022739,2]
[367141657,1750668880170,-2097.28,0.00022739,2]
[367141658,1750668880201,-1100.47,0.00022739,2]
[367141659,1750668880235,-1054.32,0.00022739,2]
[367141660,1750668880269,-535.95,0.00022739,2]
[367141661,1750668880301,-345.93056781,0.00022739,2]
[367141662,1750668880334,-1074.69,0.00022739,2]
[367141663,1750668880365,-652.07,0.00022739,2]
[367141664,1750668880396,-460.0,0.00022739,2]
[367141665,1750668880427,-460.0,0.00022739,2]
[367141666,1750668880459,-1231.09,0.00022739,2]
[367141667,1750668880496,-460.0,0.00022739,2]
[367141668,1750668880529,-460.0,0.00022739,2]
[367141669,1750668880565,-6500.87,0.00022739,2]
[367141670,1750668880603,-460.0,0.00022739,2]
[367141671,1750668880635,-750.52,0.00022739,2]
[367141672,1750668880669,-460.0,0.00022739,2]
[367141673,1750668880702,-814.26,0.00022739,2]
[367141674,1750668880734,-460.0,0.00022739,2]
[367141675,1750668880767,-460.0,0.00022739,2]
[367141676,1750668880800,-460.0,0.00022739,2]
[367141677,1750668880835,-460.0,0.00022739,2]
[367141678,1750668880869,-1178.39,0.00022739,2]
[367141679,1750668880906,-460.0,0.00022739,2]
[367141680,1750668880940,-460.0,0.00022739,2]
[367141681,1750668880973,-460.0,0.00022739,2]
[367141682,1750668881004,-460.0,0.00022739,2]
[367141683,1750668881036,-460.0,0.00022739,2]
[367141684,1750668881067,-460.0,0.00022739,2]
[367141685,1750668881099,-460.0,0.00022739,2]
[367141686,1750668881130,-963.76,0.00022739,2]
[367141687,1750668881161,-1651.31,0.00022739,2]
[367141688,1750668881194,-469.12819751,0.00022739,2]
[367141689,1750668881227,-1168.55,0.00022739,2]
[367141690,1750668881259,-460.0,0.00022739,2]
[367141691,1750668881292,-810.72,0.00022739,2]
[367141692,1750668881323,-506.13,0.00022739,2]
[367141693,1750668881353,-460.0,0.00022739,2]
[367141694,1750668881385,-640.46,0.00022739,2]
[367141695,1750668881417,-460.0,0.00022739,2]
[367141696,1750668881449,-575.26,0.00022739,2]
[367141697,1750668881482,-1312.86,0.00022739,2]
[367141698,1750668881514,-267.17515498,0.00022739,2]
[367141699,1750668881546,-584.29,0.00022739,2]
[367141700,1750668881579,-460.0,0.00022739,2]
[367141701,1750668881612,-824.55,0.00022739,2]
[367141702,1750668881647,-460.0,0.00022739,2]
[367141703,1750668881681,-696.35,0.00022739,2]
[367141704,1750668881714,-1432.01,0.00022739,2]
[367141705,1750668881749,-541.43,0.00022739,2]
[367141706,1750668881783,-460.0,0.00022739,2]
[367141707,1750668881816,-460.0,0.00022739,2]
[367141708,1750668881854,-1134.45,0.00022739,2]
[367141709,1750668881892,-1318.97,0.00022739,2]
[367141710,1750668881926,-460.0,0.00022739,2]
[367141711,1750668882117,-460.0,0.00022739,2]
[367141712,1750668882151,-460.0,0.00022739,2]
[367141713,1750668882185,-460.0,0.00022739,2]
[367141714,1750668882217,-1160.72,0.00022739,2]
[367141715,1750668882251,-8624.4,0.00022739,2]
[367141716,1750668882283,-530.06,0.00022739,2]
[367141717,1750668882315,-460.0,0.00022739,2]
[367141718,1750668882346,-727.12,0.00022739,2]
[367141719,1750668882377,-460.0,0.00022739,2]
[367141720,1750668882408,-460.0,0.00022739,2]
[367141721,1750668882441,-460.0,0.00022739,2]
[367141722,1750668882473,-460.0,0.00022739,2]
[367141723,1750668882504,-672.09,0.00022739,2]
[367141724,1750668882536,-3057.12,0.00022739,2]
[367141725,1750668882569,-460.0,0.00022739,2]
[367141726,1750668882604,-460.0,0.00022739,2]
[367141727,1750668882640,-460.0,0.00022739,2]
[367141728,1750668882676,-3812.56,0.00022739,2]
[367141729,1750668882711,-460.0,0.00022739,2]
[367141730,1750668882745,-460.0,0.00022739,2]
[367141731,1750668882780,-460.0,0.00022739,2]
[367141732,1750668882815,-460.0,0.00022739,2]
[367141733,1750668882851,-460.0,0.00022739,2]
[367141734,1750668882886,-627.42,0.00022739,2]
[367141735,1750668882920,-610.84,0.00022739,2]
[367141736,1750668882954,-460.0,0.00022739,2]
[367141737,1750668882987,-796.2,0.00022739,2]
[367141738,1750668883021,-499.96,0.00022739,2]
[367141739,1750668883053,-2473.62,0.00022739,2]
[367141740,1750668883084,-460.0,0.00022739,2]
[367141741,1750668883116,-460.0,0.00022739,2]
[367141742,1750668883147,-1430.76,0.00022739,2]
[367141743,1750668883180,-892.93,0.00022739,2]
[367141744,1750668883212,-460.0,0.00022739,2]
[367141745,1750668883244,-478.89,0.00022739,2]
[367141746,1750668883276,-460.0,0.00022739,2]
[367141747,1750668883308,-460.0,0.00022739,2]
[367141748,1750668883339,-5393.99,0.00022739,2]
[367141749,1750668883371,-513.71,0.00022739,2]
[367141750,1750668883403,-460.0,0.00022739,2]
[367141751,1750668883436,-460.0,0.00022739,2]
[367141752,1750668883469,-460.0,0.00022739,2]
[367141753,1750668883502,-1427.01,0.00022739,2]
[367141754,1750668883534,-1585.98,0.00022739,2]
[367141755,1750668883566,-460.0,0.00022739,2]
[367141756,1750668883598,-460.0,0.00022739,2]
[367141757,1750668883631,-460.0,0.00022739,2]
[367141758,1750668883667,-492.34,0.00022739,2]
[367141759,1750668883705,-3023.47,0.00022739,2]
[367141760,1750668883740,-460.0,0.00022739,2]
[367141761,1750668883774,-460.0,0.00022739,2]
[367141762,1750668883806,-658.2,0.00022739,2]
[367141763,1750668883837,-2438.96,0.00022739,2]
[367141764,1750668883873,-624.12,0.00022739,2]
[367141765,1750668883907,-1488.85,0.00022739,2]
[367141766,1750668883942,-21969.91,0.00022739,2]
[367141767,1750668883974,-5032.78,0.00022739,2]
[367141768,1750668884006,-460.0,0.00022739,2]
[367141769,1750668884038,-2882.28,0.00022739,2]
[367141770,1750668884069,-460.0,0.00022739,2]
[367141771,1750668884102,-460.0,0.00022739,2]
[367141772,1750668884134,-460.0,0.00022739,2]
[367141773,1750668884165,-460.0,0.00022739,2]
[367141774,1750668884198,-2876.44,0.00022739,2]
[367141775,1750668884230,-460.0,0.00022739,2]
[367141776,1750668884262,-975.76,0.00022739,2]
[367141777,1750668884295,-460.0,0.00022739,2]
[367141778,1750668884327,-744.21,0.00022739,2]
[367141779,1750668884358,-460.0,0.00022739,2]
[367141780,1750668884390,-1205.15,0.00022739,2]
[367141781,1750668884423,-774.21,0.00022739,2]
[367141782,1750668884456,-1607.5,0.00022739,2]
[367141783,1750668884490,-3000.0,0.0002274,2]
[367141784,1750668884522,-3000.0,0.0002275,2]
[367141785,1750668884555,-3000.0,0.0002276,2]
[367141786,1750668884587,-3000.0,0.0002277,2]
[367141787,1750668884621,-3000.0,0.0002278,2]
[367141788,1750668884655,-3000.0,0.0002279,2]
[367141789,1750668884690,-3000.0,0.000228,2]
[367141790,1750668884725,-3000.0,0.0002281,2]
[367141791,1750668884758,-3000.0,0.0002282,2]
[367141792,1750668884791,-3000.0,0.0002283,2]
[367141793,1750668884824,-3000.0,0.0002284,2]
[367141794,1750668884858,-366.0,0.00022843,5]
[367141795,1750668884892,-3000.0,0.0002285,2]
[367141796,1750668884926,-3000.0,0.0002286,2]
[367141797,1750668884960,-3270.77,0.00022862,2]
[367141798,1750668884995,-3000.0,0.0002287,2]
[367141799,1750668885027,-1873.24848879,0.0002288,2]
[367141800,1750668885061,-3000.0,0.0002288,2]
[367141801,1750668885093,-3000.0,0.0002289,2]
[367141802,1750668885128,-3000.0,0.000229,2]
[367141803,1750668885161,-3000.0,0.0002291,2]
[367141804,1750668885331,-3000.0,0.0002292,2]
[367141805,1750668885379,-3000.0,0.0002293,2]
[367141806,1750668885417,-3000.0,0.0002294,2]
[367141807,1750668885455,-3000.0,0.0002295,2]
[367141808,1750668885493,-3000.0,0.0002296,2]
[367141809,1750668885530,-3000.0,0.0002297,2]
[367141810,1750668885568,-3000.0,0.0002298,2]
[367141811,1750668885603,-800.0,0.00022985,2]
[367141812,1750668885639,-3000.0,0.0002299,2]
[367141813,1750668885674,-1000.0,0.00023,5]
[367141814,1750668885708,-1502.88376731,0.00023,7]
[367141815,1750668885743,-4404.21305751,0.00023,2]
[367141816,1750668885777,-5369.16232278,0.00023,3]
[367141817,1750668885811,-291.39,0.00023,3]
[367141818,1750668885844,-500.0,0.00023,3]
[367141819,1750668885881,-500.0,0.00023,4]
[367141820,1750668885915,-500.0,0.00023,4]
[367141821,1750668885949,-500.0,0.00023,3]
[367141822,1750668885986,-500.0,0.00023,3]
[367141823,1750668886288,-500.0,0.00023,2]
[367141824,1750668886325,-500.0,0.00023,4]
[367141825,1750668886359,-500.0,0.00023,2]
[367141826,1750668886391,-500.0,0.00023,2]
[367141827,1750668886423,-500.0,0.00023,3]
[367141828,1750668886454,-500.0,0.00023,3]
[367141829,1750668886488,-200.0,0.00023,2]
[367141830,1750668886520,-160.0,0.00023,3]
[367141831,1750668886552,-160.0,0.00023,3]
[367141832,1750668886586,-160.0,0.00023,3]
[367141833,1750668886619,-160.0,0.00023,3]
[367141834,1750668886653,-230.18214666,0.00023,3]
[367141835,1750668886686,-160.0,0.00023,3]
[367141836,1750668886720,-836.70095952,0.00023,3]
[367141837,1750668886754,-187.0,0.00023,7]
[367141838,1750668886788,-160.0,0.00023,3]
[367141839,1750668886822,-425.08510397,0.00023,3]
[367141840,1750668886857,-3000.0,0.00023,2]
[367141841,1750668887190,1473.22,0.00021917,2]
[367141842,1750668887301,1473.22,0.00022191,2]
[367141843,1750668887366,1473.22,0.00022465,2]
[367141844,1750668887428,1473.22,0.00022739,2]
[367141845,1750668887700,460.0,0.00021917,2]
[367141846,1750668888131,460.0,0.00021917,2]
[367141847,1750668888177,460.0,0.00022191,2]
[367141848,1750668888223,173.3869706,0.00021917,2]
[367141849,1750668888268,460.0,0.00021917,2]
[367141850,1750668888305,460.0,0.00022465,2]
[367141851,1750668888348,460.0,0.00022191,2]
[367141852,1750668888385,555.47,0.00022739,2]
[367141853,1750668888426,460.0,0.00021917,2]
[367141854,1750668888470,460.0,0.00022465,2]
[367141855,1750668888525,460.0,0.00022739,2]
[367141856,1750668888678,460.0,0.00021917,2]
[367141857,1750668888968,460.0,0.00021917,2]
[367141858,1750668889112,206.34,0.00022191,2]
[367141859,1750668889161,435.8,0.0002199,10]
[367141860,1750668889277,460.0,0.00021917,2]
[367141861,1750668889406,460.0,0.00021917,2]
[367141862,1750668889446,460.0,0.00021917,2]
[367141863,1750668889498,460.0,0.00022191,2]
[367141864,1750668889536,460.0,0.00021917,2]
[367141865,1750668889666,460.0,0.00022465,2]
[367141866,1750668889707,460.0,0.00021917,2]
[367141867,1750668889751,460.0,0.00022739,2]
[367141868,1750668889797,460.0,0.00021917,2]
[367141869,1750668889834,460.0,0.00022191,2]
[367141870,1750668889887,460.0,0.00022465,2]
[367141871,1750668889933,460.0,0.00022739,2]
[367141872,1750668890037,460.0,0.00021917,2]
[367141873,1750668890226,460.0,0.00021917,2]
[367141874,1750668890276,460.0,0.00021917,2]
[367141875,1750668890322,460.0,0.00021917,2]
[367141876,1750668890411,460.0,0.00021917,2]
[367141877,1750668890604,1764.0891738,0.00022913,2]
[367141878,1750668890659,743.62,0.00021917,2]
[367141879,1750668890699,743.62,0.00022191,2]
[367141880,1750668890743,743.62,0.00022465,2]
[367141881,1750668890784,743.62,0.00022739,2]
[367141882,1750668890924,460.0,0.00021917,2]
[367141883,1750668890965,460.0,0.00021917,2]
[367141884,1750668891243,363.16,0.00022181,10]
[367141885,1750668891375,300.0,0.00021916,2]
[367141886,1750668891434,460.0,0.00021917,2]
[367141887,1750668891476,238.86,0.00022191,2]
[367141888,1750668891606,460.0,0.00021917,2]
[367141889,1750668891650,460.0,0.00021917,2]
[367141890,1750668891907,1238.6,0.00021917,2]
[367141891,1750668891953,1238.6,0.00022191,2]
[367141892,1750668892000,1238.6,0.00022465,2]
[367141893,1750668892066,1238.6,0.00022739,2]
[367141894,1750668892735,302.64,0.00022181,10]
[367141895,1750668892807,2043.84,0.00021917,2]
[367141896,1750668892846,2043.84,0.00022191,2]
[367141897,1750668892889,2043.84,0.00022465,2]
[367141898,1750668892929,2043.84,0.00022739,2]
[367141899,1750668892968,460.0,0.00021917,2]
[367141900,1750668893026,460.0,0.00021917,2]
[367141901,1750668893066,460.0,0.00022191,2]
[367141902,1750668893104,2730.66,0.00021917,2]
[367141903,1750668893147,460.0,0.00022465,2]
[367141904,1750668893186,2730.66,0.00022191,2]
[367141905,1750668893228,2730.66,0.00022465,2]
[367141906,1750668893266,460.0,0.00022739,2]
[367141907,1750668893310,2730.66,0.00022739,2]
[367141908,1750668893487,213.63163053,0.00023,3]
[367141909,1750668893557,213.63163053,0.00022,7]
[367141910,1750668893619,151.0,0.00022,7]
[367141911,1750668893710,151.0,0.00022,7]
[367141912,1750668893763,151.0,0.00022191,7]
[367141913,1750668893875,151.0,0.00022191,7]
[367141914,1750668893914,1500.0,0.00022191,14]
[367141915,1750668893962,151.0,0.00022191,7]
[367141916,1750668894002,1500.0,0.00022191,14]
[367141917,1750668894048,1500.0,0.00022191,14]
[367141918,1750668894092,1500.0,0.00022191,14]
[367141919,1750668894137,151.0,0.00022191,7]
[367141920,1750668894198,1500.0,0.00022191,14]
[367141921,1750668894234,151.0,0.00022191,7]
[367141922,1750668894269,1500.0,0.00022191,14]
[367141923,1750668894305,460.0,0.00021917,2]
[367141924,1750668894383,151.0,0.00022465,7]
[367141925,1750668894421,460.0,0.00022191,2]
[367141926,1750668894457,151.0,0.00022465,7]
[367141927,1750668894493,460.0,0.00022465,2]
[367141928,1750668894529,460.0,0.00022739,2]
[367141929,1750668894567,151.0,0.00022465,7]
[367141930,1750668894604,1500.0,0.00022191,14]
[367141931,1750668894649,151.0,0.00022,7]
[367141932,1750668894686,1500.0,0.00022191,14]
[367141933,1750668894728,151.0,0.00022,7]
[367141934,1750668894771,1500.0,0.00022191,14]
[367141935,1750668894899,151.0,0.00022191,7]
[367141936,1750668894938,1500.0,0.00022191,14]
[367141937,1750668894983,201.374993,0.00022191,7]
[367141938,1750668895021,1500.0,0.00022191,14]
[367141939,1750668895063,252.2,0.00022455,10]
[367141940,1750668895105,1500.0,0.00022191,14]
[367141941,1750668895191,1500.0,0.00022191,14]
[367141942,1750668895229,460.0,0.00021917,2]
[367141943,1750668895339,1500.0,0.00022191,14]
[367141944,1750668895458,1500.0,0.00022191,14]
[367141945,1750668895722,1500.0,0.00022191,14]
[367141946,1750668895767,1500.0,0.00022191,14]
[367141947,1750668895855,1500.0,0.00022191,14]
[367141948,1750668895894,460.0,0.00021917,2]
[367141949,1750668895932,1500.0,0.00022191,14]
[367141950,1750668895971,460.0,0.00021917,2]
[367141951,1750668896008,422.77408284,0.00022191,2]
[367141952,1750668896045,1500.0,0.00022191,14]
[367141953,1750668896160,1500.0,0.00022191,14]
[367141954,1750668896379,1500.0,0.00022191,14]
[367141955,1750668896426,1500.0,0.00022191,14]
[367141956,1750668896507,1500.0,0.00022191,14]
[367141957,1750668896628,5809.83,0.00021917,2]
[367141958,1750668896676,1500.0,0.00022191,14]
[367141959,1750668896795,5809.83,0.00022191,2]
[367141960,1750668896882,1500.0,0.00022191,14]
[367141961,1750668897121,460.0,0.00021917,2]
[367141962,1750668897162,5809.83,0.00022465,2]
[367141963,1750668897381,1500.0,0.00022191,14]
[367141964,1750668897417,574.76,0.00022191,2]
[367141965,1750668897457,460.0,0.00021917,2]
[367141966,1750668897499,5809.83,0.00022739,2]
[367141967,1750668897574,1500.0,0.00022191,14]
[367141968,1750668897625,1500.0,0.00022191,14]
[367141969,1750668897680,1500.0,0.00022191,14]
[367141970,1750668897806,1500.0,0.00022191,14]
[367141971,1750668897855,460.0,0.00021917,2]
[367141972,1750668897903,1500.0,0.00022191,14]
[367141973,1750668897949,1500.0,0.00022191,14]
[367141974,1750668898004,1500.0,0.00022191,14]
[367141975,1750668898048,1500.0,0.00022191,14]
[367141976,1750668898097,1500.0,0.00022191,14]
[367141977,1750668898305,1500.0,0.00022191,14]
[367141978,1750668898351,1500.0,0.00022191,14]
[367141979,1750668898397,1500.0,0.00022191,14]
[367141980,1750668898443,1500.0,0.00022191,14]
[367141981,1750668898485,230.18214666,0.00021917,2]
[367141982,1750668898523,1500.0,0.00022191,14]
[367141983,1750668898566,1500.0,0.00022191,14]
[367141984,1750668898608,210.139205,0.00022,7]
[367141985,1750668898665,210.139205,0.00022,7]
[367141986,1750668898704,460.0,0.00021917,2]
[367141987,1750668898731,150.0,0.00021457,30]
[367141988,1750668898772,460.0,0.00022191,2]
[367141989,1750668898812,210.139205,0.00022191,7]
[367141990,1750668899021,496.07,0.00021917,2]
[367141991,1750668899048,150.0,0.00023407,30]
[367141992,1750668899087,210.139205,0.00022191,7]
[367141993,1750668899124,496.07,0.00022191,2]
[367141994,1750668899164,460.0,0.00022465,2]
[367141995,1750668899203,496.07,0.00022465,2]
[367141996,1750668899239,210.139205,0.00022191,7]
[367141997,1750668899276,460.0,0.00022739,2]
[367141998,1750668899314,496.07,0.00022739,2]
[367141999,1750668899351,210.16,0.00022729,10]
[367142000,1750668899392,210.139205,0.00022191,7]
[367142001,1750668899440,210.139205,0.00022191,7]
[367142002,1750668899485,210.139205,0.00022465,7]
[367142003,1750668899529,210.139205,0.00022465,7]
[367142004,1750668899570,210.139205,0.00022465,7]
[367142005,1750668899611,210.139205,0.00022,7]
[367142006,1750668899653,425.08510397,0.00021917,2]
[367142007,1750668899695,210.139205,0.00022,7]
[367142008,1750668899756,708.949042,0.00021917,2]
[367142009,1750668899887,210.139205,0.00022191,7]
[367142010,1750668899929,708.949042,0.0002199,7]
[367142011,1750668899972,210.139205,0.00022191,7]
[367142012,1750668900011,708.949042,0.00022,7]
[367142013,1750668900054,210.139205,0.00022191,7]
[367142014,1750668900098,708.949042,0.00022,7]